[Event "Romanian Championship Open 2025"]
[Site "Craiova"]
[Date "2025.02.19"]
[Round "5.14"]
[White "Danila, Tudor-Gabriel"]
[Black "Coicev, Matei-Andrei"]
[Result "0-1"]
[Annotator "RC"]
[ECO "B11"]
[WhiteElo "2136"]
[BlackElo "2286"]
[PlyCount "90"]
[EventDate "2025.02.12"]
[EventType "swiss"]
[EventCountry "ROU"]
[SourceTitle "playchess.com"]
[Source "ChessBase"]
[SourceQuality "1"]
[TimeControl "40/5400+30:900+30"]

1. e4 {[%emt 0:00:02]} c6 {[%emt 0:00:08]} 2. Nc3 {[%emt 0:00:05]} d5 {[%emt 0:00:03]} 3. Nf3 {[%emt 0:00:03]} Bg4 {[%emt 0:00:06]} 4. h3 {[%emt 0:00:04]} Bxf3 {[%emt 0:00:06]} 5. Qxf3 {[%emt 0:00:04]} e6 {[%emt 0:00:06]} 6. Be2 {[%emt 0:00:03]} d4 {[%emt 0:00:06]} 7. Nb1 {[%emt 0:00:04]} Bd6 {[%emt 0:00:08]} 8. d3 {[%emt 0:00:13]} Ne7 {[%emt 0:00:14]} 9. O-O {[%emt 0:02:13]} c5 {[%emt 0:00:18]} 10. g3 {[%emt 0:02:13]} Nbc6 {[%emt 0:02:52]} 11. Nd2 {[%emt 0:02:01]} Qd7 {[%emt 0:01:34]} 12. Qg2 {[%emt 0:02:09]} O-O-O {[%emt 0:01:06]} 13. a3 {[%emt 0:01:14]} Kb8 {[%emt 0:02:41]} 14. Nc4 {[%emt 0:00:21]} Bc7 {[%emt 0:00:38]} 15. b4 {[%emt 0:02:58]} cxb4 {[%emt 0:02:23]} 16. axb4 {[%emt 0:00:40]} Nxb4 {[%emt 0:00:46]} 17. Bd2 {[%emt 0:00:20]} Nec6 {[%emt 0:01:02]} 18. Rfb1 {[%emt 0:01:25]} a5 {[%emt 0:01:06]} 19. e5 {[%emt 0:04:54]} Nd5 {[%emt 0:20:56]} 20. Bf3 {[%emt 0:17:28]} Nxe5 {[%emt 0:09:54]} 21. Nxe5 {[%emt 0:00:43]} Bxe5 {[%emt 0:00:57]} 22. Rxa5 {[%emt 0:00:06]} Qc6 {[%emt 0:01:41]} 23. Ra2 {[%emt 0:12:13]} Rd7 {[%emt 0:03:17]} 24. Qf1 {[%emt 0:04:46]} Rc8 {[%emt 0:14:54]} 25. Rb3 {[%emt 0:11:16]} Qc5 {[%emt 0:06:02]} 26. Qb1 {[%emt 0:13:22]} Rc6 {[%emt 0:01:58]} 27. Rab2 {[%emt 0:00:53]} Qa7 {[%emt 0:01:48]} 28. Qe1 {[%emt 0:08:03]} f6 {[%emt 0:04:03]} 29. Bg2 {[%emt 0:01:23]} Ra6 {[%emt 0:01:28]} 30. Rb1 {[%emt 0:00:03]} g6 {[%emt 0:01:32]} 31. f4 {[%emt 0:00:48]} Bc7 {[%emt 0:00:11]} 32. Kh2 {[%emt 0:01:08]} Rdd6 {[%emt 0:03:32]} 33. c4 {[%emt 0:00:49]} dxc3 {[%emt 0:00:37]} 34. Bxc3 {[%emt 0:00:22]} Kc8 {[%emt 0:02:40]} 35. Qe4 {[%emt 0:07:26]} Ra4 {[%emt 0:03:22]} 36. Qf3 {[%emt 0:01:35]} b6 {[%emt 0:01:33]} 37. Be1 {[%emt 0:00:57]} Ra2 {[%emt 0:01:28]} 38. Bf2 {[%emt 0:00:05]} Qa4 {[%emt 0:00:52]} 39. Kg1 {[%emt 0:01:45]} Rc2 {[%emt 0:02:40]} 40. f5 {[%emt 0:00:00]} gxf5 {[%emt 0:00:00]} 41. Qh5 {[%emt 0:06:47]} Qa2 {[%emt 0:02:56]} 42. Bxd5 {[%emt 0:03:59]} exd5 {[%emt 0:01:27]} 43. Qxf5+ {[%emt 0:00:24]} Kb7 {[%emt 0:00:22]} 44. Rb4 {[%emt 0:01:59]} Rdc6 {[%emt 0:03:10]} 45. Kg2 {[%emt 0:01:12]} Rxf2+ {[%emt 0:00:55]} 0-1

[Event "Romanian Championship Open 2025"]
[Site "Craiova"]
[Date "2025.02.19"]
[Round "5.15"]
[White "Nastase, Robert-Paul"]
[Black "Sprincean, Lukas George"]
[Result "1-0"]
[Annotator "RC"]
[ECO "A03"]
[WhiteElo "2259"]
[BlackElo "2134"]
[PlyCount "85"]
[EventDate "2025.02.12"]
[EventType "swiss"]
[EventCountry "ROU"]
[SourceTitle "playchess.com"]
[Source "ChessBase"]
[SourceQuality "1"]
[TimeControl "40/5400+30:900+30"]

1. d3 {[%emt 0:02:00]} d5 {[%emt 0:01:20]} 2. f4 {[%emt 0:00:04]} c5 {[%emt 0:01:00]} 3. Nf3 {[%emt 0:00:05]} g6 {[%emt 0:00:55]} 4. g3 {[%emt 0:00:14]} Bg7 {[%emt 0:00:32]} 5. Bg2 {[%emt 0:00:05]} Nc6 {[%emt 0:03:56]} 6. O-O {[%emt 0:00:04]} d4 {[%emt 0:06:16]} 7. c3 {[%emt 0:05:08]} Nh6 {[%emt 0:02:31]} 8. e4 {[%emt 0:00:21]} dxe3 {[%emt 0:15:47]} 9. Qe2 {[%emt 0:00:41]} Bf5 {[%emt 0:12:03]} 10. Ne1 {[%emt 0:02:57]} Ng4 {[%emt 0:04:03]} 11. Na3 {[%emt 0:00:46]} O-O {[%emt 0:02:50]} 12. h3 {[%emt 0:18:12]} Nf2 {[%emt 0:09:44]} 13. Bxe3 {[%emt 0:04:04]} Nxh3+ {[%emt 0:01:02]} 14. Kh2 {[%emt 0:00:04]} Qd7 {[%emt 0:00:26]} 15. Rf3 {[%emt 0:01:27]} f6 {[%emt 0:13:33]} 16. g4 {[%emt 0:06:16]} Bxg4 {[%emt 0:00:32]} 17. Bxh3 {[%emt 0:00:05]} Bxf3 {[%emt 0:00:05]} 18. Qxf3 {[%emt 0:00:06]} f5 {[%emt 0:01:10]} 19. Bxc5 {[%emt 0:01:41]} Rfe8 {[%emt 0:01:14]} 20. Nc4 {[%emt 0:02:19]} Rac8 {[%emt 0:01:35]} 21. a4 {[%emt 0:08:41]} Qc7 {[%emt 0:03:19]} 22. Ba3 {[%emt 0:08:09]} Rcd8 {[%emt 0:00:39]} 23. Ng2 {[%emt 0:06:52]} a6 {[%emt 0:01:22]} 24. a5 {[%emt 0:03:06]} e5 {[%emt 0:00:22]} 25. Re1 {[%emt 0:00:12]} Nxa5 {[%emt 0:01:05]} 26. Nxe5 {[%emt 0:01:13]} Nb3 {[%emt 0:02:54]} 27. d4 {[%emt 0:02:11]} Nd2 {[%emt 0:01:14]} 28. Qd1 {[%emt 0:03:04]} Bxe5 {[%emt 0:00:42]} 29. fxe5 {[%emt 0:01:49]} Nc4 {[%emt 0:00:05]} 30. Qb3 {[%emt 0:01:29]} Kh8 {[%emt 0:01:01]} 31. Kh1 {[%emt 0:01:17]} Nd2 {[%emt 0:00:28]} 32. Qd1 {[%emt 0:06:15]} Nc4 {[%emt 0:02:11]} 33. Qf3 {[%emt 0:01:00]} b5 {[%emt 0:00:41]} 34. e6 {[%emt 0:08:42]} Nd2 {[%emt 0:01:57]} 35. Qf4 {[%emt 0:00:12]} Qxf4 {[%emt 0:00:09]} 36. Nxf4 {[%emt 0:00:04]} Ne4 {[%emt 0:00:22]} 37. e7 {[%emt 0:01:11]} Rb8 {[%emt 0:00:42]} 38. Nd5 {[%emt 0:03:35]} Rb7 {[%emt 0:00:48]} 39. Bg2 {[%emt 0:00:31]} b4 {[%emt 0:04:41]} 40. Bxb4 {[%emt 0:00:00]} a5 {[%emt 0:00:00]} 41. Ba3 {[%emt 0:00:15]} Nf2+ {[%emt 0:04:24]} 42. Kg1 {[%emt 0:01:02]} Ng4 {[%emt 0:00:05]} 43. Nf6 {[%emt 0:01:36]} 1-0

[Event "Romanian Championship Open 2025"]
[Site "Craiova"]
[Date "2025.02.19"]
[Round "5.16"]
[White "Nastore, Pavel-Alexandru"]
[Black "Korcsek, Alexandru-David"]
[Result "1-0"]
[Annotator "RC"]
[ECO "E06"]
[WhiteElo "2250"]
[BlackElo "2127"]
[PlyCount "123"]
[EventDate "2025.02.12"]
[EventType "swiss"]
[EventCountry "ROU"]
[SourceTitle "playchess.com"]
[Source "ChessBase"]
[SourceQuality "1"]
[TimeControl "40/5400+30:900+30"]

1. d4 {[%emt 0:01:18]} d5 {[%emt 0:00:20]} 2. Nf3 {[%emt 0:00:05]} Nf6 {[%emt 0:00:22]} 3. g3 {[%emt 0:00:05]} e6 {[%emt 0:00:52]} 4. Bg2 {[%emt 0:00:04]} c5 {[%emt 0:00:11]} 5. O-O {[%emt 0:00:06]} Nc6 {[%emt 0:01:09]} 6. c4 {[%emt 0:00:52]} Be7 {[%emt 0:03:39]} 7. dxc5 {[%emt 0:05:45]} Bxc5 {[%emt 0:02:28]} 8. Nc3 {[%emt 0:00:10]} Be7 {[%emt 0:11:58]} 9. Qc2 {[%emt 0:03:15]} dxc4 {[%emt 0:06:54]} 10. e4 {[%emt 0:24:16]} Nb4 {[%emt 0:08:49]} 11. Qe2 {[%emt 0:00:07]} Qd3 {[%emt 0:00:38]} 12. Qxd3 {[%emt 0:00:49]} Nxd3 {[%emt 0:01:12]} 13. Nd2 {[%emt 0:00:24]} Bd7 {[%emt 0:04:07]} 14. Nxc4 {[%emt 0:01:32]} Rc8 {[%emt 0:00:13]} 15. Ne3 {[%emt 0:00:49]} Bc6 {[%emt 0:05:10]} 16. Rd1 {[%emt 0:01:08]} Nxc1 {[%emt 0:02:29]} 17. Raxc1 {[%emt 0:00:08]} Bc5 {[%emt 0:05:34]} 18. Nc4 {[%emt 0:04:16]} O-O {[%emt 0:01:24]} 19. Ne5 {[%emt 0:16:07]} Be8 {[%emt 0:18:51]} 20. a3 {[%emt 0:03:24]} a6 {[%emt 0:01:32]} 21. h3 {[%emt 0:00:19]} Ba7 {[%emt 0:00:45]} 22. Nd3 {[%emt 0:03:29]} Bc6 {[%emt 0:05:49]} 23. e5 {[%emt 0:00:31]} Nd5 {[%emt 0:05:16]} 24. Nxd5 {[%emt 0:05:04]} Bxd5 {[%emt 0:00:12]} 25. Bxd5 {[%emt 0:00:24]} exd5 {[%emt 0:00:06]} 26. Nb4 {[%emt 0:03:25]} Rxc1 {[%emt 0:02:34]} 27. Rxc1 {[%emt 0:00:13]} Bd4 {[%emt 0:00:06]} 28. Nd3 {[%emt 0:01:45]} Re8 {[%emt 0:01:50]} 29. Rc7 {[%emt 0:02:22]} b6 {[%emt 0:01:26]} 30. Rc6 {[%emt 0:06:12]} a5 {[%emt 0:02:59]} 31. Rd6 {[%emt 0:04:44]} f6 {[%emt 0:00:54]} 32. exf6 {[%emt 0:00:05]} Bxf6 {[%emt 0:00:21]} 33. Kf1 {[%emt 0:00:32]} Rb8 {[%emt 0:04:59]} 34. Rxd5 {[%emt 0:00:32]} Kf7 {[%emt 0:00:04]} 35. a4 {[%emt 0:02:04]} Ke7 {[%emt 0:00:42]} 36. Ke2 {[%emt 0:01:30]} Rc8 {[%emt 0:00:25]} 37. Ke3 {[%emt 0:00:58]} Rc6 {[%emt 0:01:10]} 38. b3 {[%emt 0:00:42]} h6 {[%emt 0:00:19]} 39. h4 {[%emt 0:00:33]} Re6+ {[%emt 0:01:31]} 40. Kf3 {[%emt 0:00:00]} Rc6 {[%emt 0:00:00]} 41. Rb5 {[%emt 0:03:22]} Kd6 {[%emt 0:02:03]} 42. Ke4 {[%emt 0:01:15]} Kc7 {[%emt 0:00:42]} 43. Nf4 {[%emt 0:00:47]} Bd8 {[%emt 0:02:20]} 44. h5 {[%emt 0:00:39]} Kd6 {[%emt 0:02:08]} 45. Rd5+ {[%emt 0:04:01]} Ke7 {[%emt 0:00:32]} 46. g4 {[%emt 0:02:31]} Bc7 {[%emt 0:00:42]} 47. Ng6+ {[%emt 0:02:34]} Ke6 {[%emt 0:00:06]} 48. f3 {[%emt 0:04:25]} Rc3 {[%emt 0:00:48]} 49. Rb5 {[%emt 0:00:07]} Rc1 {[%emt 0:00:14]} 50. Nh4 {[%emt 0:00:35]} Re1+ {[%emt 0:00:22]} 51. Kd3 {[%emt 0:00:08]} Rd1+ {[%emt 0:00:48]} 52. Ke2 {[%emt 0:01:53]} Rc1 {[%emt 0:00:26]} 53. Nf5 {[%emt 0:00:17]} Kf6 {[%emt 0:00:04]} 54. Ne3 {[%emt 0:00:15]} Ke6 {[%emt 0:02:52]} 55. Nc4 {[%emt 0:00:12]} Rc3 {[%emt 0:00:20]} 56. Nxb6 {[%emt 0:00:16]} Bxb6 {[%emt 0:00:08]} 57. Rxb6+ {[%emt 0:00:04]} Ke5 {[%emt 0:00:04]} 58. Rb5+ {[%emt 0:03:54]} Kf4 {[%emt 0:00:05]} 59. Rxa5 {[%emt 0:00:08]} Rxb3 {[%emt 0:00:06]} 60. Rf5+ {[%emt 0:00:09]} Kg3 {[%emt 0:00:06]} 61. a5 {[%emt 0:00:04]} Ra3 {[%emt 0:00:49]} 62. Kd2 {[%emt 0:00:05]} 1-0

[Event "Romanian Championship Open 2025"]
[Site "Craiova"]
[Date "2025.02.19"]
[Round "5.17"]
[White "Nedelcu, Teodor-Cosmin"]
[Black "Dumitrescu, Daniel"]
[Result "1-0"]
[Annotator "RC"]
[ECO "D31"]
[WhiteElo "2320"]
[BlackElo "2038"]
[PlyCount "85"]
[EventDate "2025.02.12"]
[EventType "swiss"]
[EventCountry "ROU"]
[SourceTitle "playchess.com"]
[Source "ChessBase"]
[SourceQuality "1"]
[TimeControl "40/5400+30:900+30"]

1. d4 {[%emt 0:04:23]} d5 {[%emt 0:00:18]} 2. c4 {[%emt 0:00:06]} e6 {[%emt 0:00:07]} 3. Nc3 {[%emt 0:00:20]} a6 {[%emt 0:00:15]} 4. cxd5 {[%emt 0:00:09]} exd5 {[%emt 0:00:06]} 5. Bf4 {[%emt 0:00:07]} Nf6 {[%emt 0:01:04]} 6. e3 {[%emt 0:00:24]} Bd6 {[%emt 0:00:19]} 7. Bg3 {[%emt 0:00:28]} O-O {[%emt 0:01:16]} 8. Bd3 {[%emt 0:01:00]} Re8 {[%emt 0:11:07]} 9. Qc2 {[%emt 0:00:58]} Nc6 {[%emt 0:05:12]} 10. Nge2 {[%emt 0:00:26]} Nb4 {[%emt 0:01:03]} 11. Qd2 {[%emt 0:00:02]} Nxd3+ {[%emt 0:00:07]} 12. Qxd3 {[%emt 0:00:02]} Bg4 {[%emt 0:03:50]} 13. f3 {[%emt 0:03:40]} Bh5 {[%emt 0:00:28]} 14. O-O {[%emt 0:00:15]} Bg6 {[%emt 0:02:20]} 15. Qd2 {[%emt 0:00:44]} c6 {[%emt 0:08:32]} 16. Rfe1 {[%emt 0:04:24]} Re6 {[%emt 0:14:59]} 17. Bxd6 {[%emt 0:06:39]} Rxd6 {[%emt 0:00:26]} 18. Ng3 {[%emt 0:01:11]} Qd7 {[%emt 0:00:33]} 19. Rad1 {[%emt 0:00:12]} Rd8 {[%emt 0:00:05]} 20. Na4 {[%emt 0:00:35]} Qc8 {[%emt 0:10:31]} 21. Qb4 {[%emt 0:02:46]} h5 {[%emt 0:02:08]} 22. Nc5 {[%emt 0:02:06]} b5 {[%emt 0:03:14]} 23. Ne2 {[%emt 0:00:46]} Qa8 {[%emt 0:06:25]} 24. Qa5 {[%emt 0:01:21]} Nd7 {[%emt 0:00:05]} 25. Nb7 {[%emt 0:00:28]} Qxb7 {[%emt 0:02:41]} 26. Qxd8+ {[%emt 0:00:41]} Kh7 {[%emt 0:00:01]} 27. Nf4 {[%emt 0:00:36]} Rf6 {[%emt 0:01:31]} 28. Nh3 {[%emt 0:01:56]} Bf5 {[%emt 0:01:12]} 29. Ng5+ {[%emt 0:00:19]} Kg6 {[%emt 0:00:03]} 30. f4 {[%emt 0:00:16]} Bg4 {[%emt 0:00:57]} 31. Qg8 {[%emt 0:01:16]} Kf5 {[%emt 0:00:12]} 32. Qxg7 {[%emt 0:01:31]} Bxd1 {[%emt 0:00:38]} 33. Qh7+ {[%emt 0:00:11]} Rg6 {[%emt 0:03:05]} 34. Qxf7+ {[%emt 0:00:09]} Rf6 {[%emt 0:00:03]} 35. Qh7+ {[%emt 0:00:11]} Rg6 {[%emt 0:00:03]} 36. Rxd1 {[%emt 0:00:13]} Qc8 {[%emt 0:00:05]} 37. Qxh5 {[%emt 0:03:31]} Nf6 {[%emt 0:00:01]} 38. g4+ {[%emt 0:00:38]} Nxg4 {[%emt 0:00:15]} 39. Nh7+ {[%emt 0:00:06]} Ke4 {[%emt 0:00:15]} 40. Qxg6+ {[%emt 0:00:00]} Kf3 {[%emt 0:00:00]} 41. Ng5+ {[%emt 0:00:50]} Kxe3 {[%emt 0:00:20]} 42. Qd3+ {[%emt 0:00:06]} Kxf4 {[%emt 0:00:05]} 43. Nh3# {[%emt 0:00:03]} 1-0

[Event "Romanian Championship Open 2025"]
[Site "Craiova"]
[Date "2025.02.19"]
[Round "5.18"]
[White "Harabor, David-Alexandru"]
[Black "Manea, Alexandru"]
[Result "1/2-1/2"]
[Annotator "RC"]
[ECO "D14"]
[WhiteElo "1929"]
[BlackElo "2272"]
[PlyCount "21"]
[EventDate "2025.02.12"]
[EventType "swiss"]
[EventCountry "ROU"]
[SourceTitle "playchess.com"]
[Source "ChessBase"]
[SourceQuality "1"]
[TimeControl "40/5400+30:900+30"]

1. d4 {[%emt 0:00:50]} d5 {[%emt 0:00:02]} 2. c4 {[%emt 0:00:04]} c6 {[%emt 0:00:03]} 3. cxd5 {[%emt 0:00:05]} cxd5 {[%emt 0:00:04]} 4. Nc3 {[%emt 0:00:08]} Nf6 {[%emt 0:00:05]} 5. Nf3 {[%emt 0:00:05]} Nc6 {[%emt 0:00:05]} 6. Bf4 {[%emt 0:00:05]} Bf5 {[%emt 0:00:06]} 7. e3 {[%emt 0:00:05]} e6 {[%emt 0:00:04]} 8. Be2 {[%emt 0:00:04]} Bd6 {[%emt 0:00:08]} 9. Bxd6 {[%emt 0:00:16]} Qxd6 {[%emt 0:00:04]} 10. O-O {[%emt 0:00:21]} O-O {[%emt 0:00:04]} 11. h3 {[%emt 0:00:06]} 1/2-1/2

[Event "Romanian Championship Open 2025"]
[Site "Craiova"]
[Date "2025.02.19"]
[Round "5.19"]
[White "Bonte, Andrei-Mihai"]
[Black "Tamas, Christian-Arrydan"]
[Result "1/2-1/2"]
[Annotator "RC"]
[ECO "D30"]
[WhiteElo "2237"]
[BlackElo "2016"]
[PlyCount "307"]
[EventDate "2025.02.12"]
[EventType "swiss"]
[EventCountry "ROU"]
[SourceTitle "playchess.com"]
[Source "ChessBase"]
[SourceQuality "1"]
[TimeControl "40/5400+30:900+30"]

1. d4 {[%emt 0:00:07]} Nf6 {[%emt 0:00:04]} 2. c4 {[%emt 0:01:01]} e6 {[%emt 0:00:04]} 3. Nf3 {[%emt 0:00:41]} c5 {[%emt 0:00:05]} 4. a3 {[%emt 0:03:38]} d5 {[%emt 0:10:27]} 5. dxc5 {[%emt 0:01:00]} Bxc5 {[%emt 0:00:06]} 6. e3 {[%emt 0:00:12]} a5 {[%emt 0:00:24]} 7. Be2 {[%emt 0:05:01]} O-O {[%emt 0:00:08]} 8. O-O {[%emt 0:00:05]} Qe7 {[%emt 0:01:02]} 9. Nc3 {[%emt 0:01:38]} Rd8 {[%emt 0:00:08]} 10. Qc2 {[%emt 0:00:30]} dxc4 {[%emt 0:03:09]} 11. Bxc4 {[%emt 0:10:07]} Nbd7 {[%emt 0:15:33]} 12. e4 {[%emt 0:17:32]} Ng4 {[%emt 0:05:05]} 13. Bf4 {[%emt 0:05:54]} Bd6 {[%emt 0:05:06]} 14. Bxd6 {[%emt 0:01:25]} Qxd6 {[%emt 0:00:04]} 15. Rfd1 {[%emt 0:00:24]} Qc5 {[%emt 0:02:08]} 16. Bb5 {[%emt 0:11:07]} b6 {[%emt 0:08:37]} 17. Rd2 {[%emt 0:07:41]} Ra7 {[%emt 0:19:47]} 18. Rad1 {[%emt 0:05:24]} Rc7 {[%emt 0:00:12]} 19. h3 {[%emt 0:07:38]} Ngf6 {[%emt 0:01:26]} 20. Qa4 {[%emt 0:01:09]} Rf8 {[%emt 0:02:17]} 21. Bxd7 {[%emt 0:01:29]} Bxd7 {[%emt 0:04:28]} 22. Rxd7 {[%emt 0:01:03]} Rxd7 {[%emt 0:00:16]} 23. Rxd7 {[%emt 0:02:19]} b5 {[%emt 0:00:04]} 24. Qd4 {[%emt 0:01:08]} Nxd7 {[%emt 0:00:05]} 25. Qxd7 {[%emt 0:00:04]} b4 {[%emt 0:01:10]} 26. Qb5 {[%emt 0:06:56]} Rc8 {[%emt 0:05:55]} 27. axb4 {[%emt 0:02:45]} Qxb5 {[%emt 0:08:44]} 28. Nxb5 {[%emt 0:00:02]} Rb8 {[%emt 0:00:14]} 29. Nbd4 {[%emt 0:05:03]} Rxb4 {[%emt 0:00:16]} 30. b3 {[%emt 0:00:53]} e5 {[%emt 0:02:23]} 31. Nc6 {[%emt 0:00:06]} Rxb3 {[%emt 0:01:32]} 32. Nxa5 {[%emt 0:00:07]} Rb1+ {[%emt 0:00:04]} 33. Kh2 {[%emt 0:00:06]} Rb2 {[%emt 0:00:03]} 34. Kg3 {[%emt 0:01:33]} Re2 {[%emt 0:00:05]} 35. Nc4 {[%emt 0:00:34]} Rxe4 {[%emt 0:00:15]} 36. Ncxe5 {[%emt 0:00:30]} f6 {[%emt 0:00:50]} 37. Nd3 {[%emt 0:00:09]} Kf7 {[%emt 0:00:16]} 38. h4 {[%emt 0:00:18]} h5 {[%emt 0:01:32]} 39. Kh3 {[%emt 0:01:13]} g6 {[%emt 0:00:18]} 40. g3 {[%emt 0:00:00]} Ra4 {[%emt 0:00:00]} 41. Kg2 {[%emt 0:00:43]} Ra3 {[%emt 0:00:56]} 42. Nfe1 {[%emt 0:01:36]} Rc3 {[%emt 0:01:39]} 43. Nf4 {[%emt 0:00:34]} Ra3 {[%emt 0:01:14]} 44. Kf1 {[%emt 0:00:07]} Ra2 {[%emt 0:00:28]} 45. Ned3 {[%emt 0:00:16]} Rc2 {[%emt 0:00:18]} 46. Ne1 {[%emt 0:01:25]} Ra2 {[%emt 0:00:08]} 47. Neg2 {[%emt 0:00:07]} Rb2 {[%emt 0:00:41]} 48. Ne3 {[%emt 0:00:07]} Ra2 {[%emt 0:00:06]} 49. Kg2 {[%emt 0:00:10]} Ra3 {[%emt 0:00:46]} 50. Kf3 {[%emt 0:00:09]} Ra2 {[%emt 0:00:05]} 51. Nd3 {[%emt 0:00:21]} Ra4 {[%emt 0:00:22]} 52. Nc5 {[%emt 0:01:06]} Ra5 {[%emt 0:01:01]} 53. Nb3 {[%emt 0:00:32]} Ra4 {[%emt 0:00:19]} 54. Nc5 {[%emt 0:01:22]} Ra5 {[%emt 0:01:36]} 55. Ne4 {[%emt 0:00:21]} Ra3 {[%emt 0:00:12]} 56. Ke2 {[%emt 0:01:18]} Ra4 {[%emt 0:01:19]} 57. Kd3 {[%emt 0:00:43]} Ra2 {[%emt 0:00:38]} 58. Nd5 {[%emt 0:01:04]} f5 {[%emt 0:02:37]} 59. Ng5+ {[%emt 0:00:18]} Kg7 {[%emt 0:00:09]} 60. Ke3 {[%emt 0:01:32]} Ra3+ {[%emt 0:02:17]} 61. Kf4 {[%emt 0:00:44]} Ra2 {[%emt 0:00:45]} 62. f3 {[%emt 0:07:20]} Rg2 {[%emt 0:00:38]} 63. Ke3 {[%emt 0:01:51]} Ra2 {[%emt 0:01:30]} 64. Kf4 {[%emt 0:00:04]} Rg2 {[%emt 0:00:07]} 65. Ne6+ {[%emt 0:02:21]} Kf7 {[%emt 0:00:10]} 66. Nd8+ {[%emt 0:00:07]} Kg7 {[%emt 0:00:12]} 67. Ne6+ {[%emt 0:01:42]} Kf7 {[%emt 0:00:05]} 68. Ng5+ {[%emt 0:00:13]} Kg7 {[%emt 0:00:04]} 69. Nh3 {[%emt 0:00:20]} Rd2 {[%emt 0:00:55]} 70. Nc3 {[%emt 0:01:44]} Rc2 {[%emt 0:01:23]} 71. Nb5 {[%emt 0:00:35]} Kf6 {[%emt 0:00:10]} 72. Ke3 {[%emt 0:00:19]} Rh2 {[%emt 0:03:33]} 73. Nf4 {[%emt 0:01:37]} g5 {[%emt 0:00:41]} 74. hxg5+ {[%emt 0:00:22]} Kxg5 {[%emt 0:00:06]} 75. Nd4 {[%emt 0:00:43]} h4 {[%emt 0:00:13]} 76. gxh4+ {[%emt 0:00:28]} Rxh4 {[%emt 0:00:13]} 77. Nfe6+ {[%emt 0:00:25]} Kf6 {[%emt 0:00:17]} 78. Nc5 {[%emt 0:00:08]} Ke5 {[%emt 0:00:35]} 79. Nd7+ {[%emt 0:00:32]} Kd5 {[%emt 0:00:18]} 80. Nb6+ {[%emt 0:00:48]} Kc5 {[%emt 0:00:45]} 81. Na4+ {[%emt 0:00:32]} Kd5 {[%emt 0:00:07]} 82. Nc3+ {[%emt 0:00:09]} Ke5 {[%emt 0:00:37]} 83. Nce2 {[%emt 0:00:18]} f4+ {[%emt 0:00:43]} 84. Kd3 {[%emt 0:00:18]} Rh6 {[%emt 0:01:23]} 85. Nb3 {[%emt 0:00:36]} Ra6 {[%emt 0:00:30]} 86. Nd2 {[%emt 0:00:18]} Rd6+ {[%emt 0:00:08]} 87. Kc3 {[%emt 0:00:10]} Rd8 {[%emt 0:00:28]} 88. Nc4+ {[%emt 0:00:07]} Kf5 {[%emt 0:00:14]} 89. Nd4+ {[%emt 0:00:04]} Kf6 {[%emt 0:00:23]} 90. Kd3 {[%emt 0:00:06]} Re8 {[%emt 0:00:08]} 91. Ne2 {[%emt 0:00:27]} Kg5 {[%emt 0:00:19]} 92. Nc3 {[%emt 0:00:34]} Re1 {[%emt 0:02:02]} 93. Nd2 {[%emt 0:00:14]} Re3+ {[%emt 0:00:11]} 94. Kd4 {[%emt 0:00:05]} Kf5 {[%emt 0:00:31]} 95. Nce4 {[%emt 0:00:36]} Re1 {[%emt 0:00:38]} 96. Kd5 {[%emt 0:01:51]} Re3 {[%emt 0:00:14]} 97. Nd6+ {[%emt 0:00:13]} Kg6 {[%emt 0:04:01]} 98. N2c4 {[%emt 0:01:18]} Rd3+ {[%emt 0:04:53]} 99. Ke6 {[%emt 0:00:20]} Rxf3 {[%emt 0:02:12]} 100. Ne5+ {[%emt 0:00:07]} Kh5 {[%emt 0:00:02]} 101. Nxf3 {[%emt 0:00:18]} Kg4 {[%emt 0:00:03]} 102. Nd2 {[%emt 0:00:57]} f3 {[%emt 0:00:10]} 103. Ke5 {[%emt 0:00:39]} f2 {[%emt 0:00:06]} 104. Nf1 {[%emt 0:00:07]} Kf3 {[%emt 0:00:51]} 105. Nf5 {[%emt 0:01:42]} Ke2 {[%emt 0:00:05]} 106. N5g3+ {[%emt 0:00:11]} Kd3 {[%emt 0:00:16]} 107. Kd5 {[%emt 0:00:09]} Kc3 {[%emt 0:00:06]} 108. Ne2+ {[%emt 0:00:26]} Kb4 {[%emt 0:00:05]} 109. Nd4 {[%emt 0:00:15]} Ka5 {[%emt 0:00:09]} 110. Kc6 {[%emt 0:01:08]} Ka6 {[%emt 0:00:11]} 111. Nb5 {[%emt 0:01:01]} Ka5 {[%emt 0:00:04]} 112. Nc7 {[%emt 0:00:27]} Kb4 {[%emt 0:00:05]} 113. Kd5 {[%emt 0:00:06]} Ka5 {[%emt 0:00:28]} 114. Kc5 {[%emt 0:00:05]} Ka4 {[%emt 0:00:02]} 115. Nd5 {[%emt 0:00:09]} Ka5 {[%emt 0:00:21]} 116. Nb4 {[%emt 0:00:26]} Ka4 {[%emt 0:00:03]} 117. Nc6 {[%emt 0:00:05]} Kb3 {[%emt 0:00:02]} 118. Kd4 {[%emt 0:00:17]} Ka4 {[%emt 0:02:13]} 119. Kc4 {[%emt 0:00:06]} Ka3 {[%emt 0:00:04]} 120. Nd4 {[%emt 0:00:24]} Ka4 {[%emt 0:00:05]} 121. Nb3 {[%emt 0:00:06]} Ka3 {[%emt 0:00:30]} 122. Kc3 {[%emt 0:00:31]} Ka4 {[%emt 0:00:17]} 123. Kc4 {[%emt 0:00:04]} Ka3 {[%emt 0:00:02]} 124. Nc5 {[%emt 0:00:46]} Kb2 {[%emt 0:00:05]} 125. Kd4 {[%emt 0:01:46]} Ka2 {[%emt 0:01:07]} 126. Kd3 {[%emt 0:00:26]} Kb2 {[%emt 0:00:32]} 127. Kd2 {[%emt 0:00:08]} Ka2 {[%emt 0:00:39]} 128. Kc2 {[%emt 0:00:19]} Ka3 {[%emt 0:00:04]} 129. Kc3 {[%emt 0:00:04]} Ka2 {[%emt 0:00:05]} 130. Nd3 {[%emt 0:00:28]} Ka3 {[%emt 0:00:04]} 131. Nb2 {[%emt 0:00:04]} Ka2 {[%emt 0:00:02]} 132. Nc4 {[%emt 0:00:07]} Kb1 {[%emt 0:01:36]} 133. Kd2 {[%emt 0:01:15]} Ka1 {[%emt 0:00:24]} 134. Kc1 {[%emt 0:00:28]} Ka2 {[%emt 0:00:04]} 135. Kc2 {[%emt 0:00:04]} Ka1 {[%emt 0:00:03]} 136. Ncd2 {[%emt 0:03:57]} Ka2 {[%emt 0:00:04]} 137. Nb1 {[%emt 0:00:10]} Ka1 {[%emt 0:00:03]} 138. Na3 {[%emt 0:00:27]} Ka2 {[%emt 0:00:06]} 139. Nb5 {[%emt 0:00:03]} Ka1 {[%emt 0:00:03]} 140. Kb3 {[%emt 0:01:22]} Kb1 {[%emt 0:00:05]} 141. Nc3+ {[%emt 0:00:40]} Kc1 {[%emt 0:00:04]} 142. Nd5 {[%emt 0:00:30]} Kd1 {[%emt 0:00:17]} 143. Kc3 {[%emt 0:00:09]} Ke2 {[%emt 0:00:10]} 144. Nde3 {[%emt 0:00:03]} Kf3 {[%emt 0:00:04]} 145. Kd3 {[%emt 0:00:04]} Kf4 {[%emt 0:00:06]} 146. Kd4 {[%emt 0:00:16]} Kg5 {[%emt 0:00:04]} 147. Ke5 {[%emt 0:00:05]} Kg6 {[%emt 0:00:08]} 148. Nd5 {[%emt 0:00:18]} Kf7 {[%emt 0:00:06]} 149. Kf5 {[%emt 0:00:08]} Ke8 {[%emt 0:00:10]} 150. Ke6 {[%emt 0:00:10]} Kd8 {[%emt 0:00:04]} 151. Kd6 {[%emt 0:00:06]} Ke8 {[%emt 0:00:04]} 152. Kc7 {[%emt 0:00:22]} Kf7 {[%emt 0:00:07]} 153. Kd7 {[%emt 0:00:01]} Kf8 {[%emt 0:00:10]} 154. Ke6 {[%emt 0:00:00]} 1/2-1/2